[Event "Late-Titled-Tuesday-Blitz-March-05-2024"]
[Site "Chess.com"]
[Date "2024.03.05"]
[Round "4"]
[White "BebeBonito2022"]
[Black "Sinquefield"]
[Result "0-1"]
[WhiteElo "2307"]
[BlackElo "2493"]
[TimeControl "180+1"]
[EndTime "14:39:59 PST"]
[Termination "Sinquefield won on time"]

1. d4 {[%clk 0:03:00.9]} 1... Nf6 {[%clk 0:02:58.5]} 2. c4 {[%clk 0:03:01]} 2...
d6 {[%clk 0:02:58.9]} 3. Nf3 {[%clk 0:03:00.6]} 3... Nbd7 {[%clk 0:02:59.2]} 4.
Nc3 {[%clk 0:03:00.7]} 4... e5 {[%clk 0:03:00.1]} 5. e4 {[%clk 0:03:01]} 5...
Be7 {[%clk 0:03:00.4]} 6. Be2 {[%clk 0:02:59.5]} 6... O-O {[%clk 0:03:00.4]} 7.
O-O {[%clk 0:02:56.3]} 7... c6 {[%clk 0:03:00.8]} 8. h3 {[%clk 0:02:55.1]} 8...
a6 {[%clk 0:03:00]} 9. a4 {[%clk 0:02:47.6]} 9... a5 {[%clk 0:03:00.4]} 10. Be3
{[%clk 0:02:47.4]} 10... Qc7 {[%clk 0:02:59.1]} 11. Qc2 {[%clk 0:02:34.2]} 11...
Re8 {[%clk 0:02:58.1]} 12. Rfd1 {[%clk 0:02:30.4]} 12... Bf8 {[%clk 0:02:57.3]}
13. Rac1 {[%clk 0:02:24.4]} 13... Nb8 {[%clk 0:02:53.6]} 14. c5 {[%clk
0:02:11.4]} 14... exd4 {[%clk 0:02:48.1]} 15. cxd6 {[%clk 0:02:11]} 15... Bxd6
{[%clk 0:02:46]} 16. Nxd4 {[%clk 0:02:07.7]} 16... Qe7 {[%clk 0:02:37.8]} 17.
Nf3 {[%clk 0:01:32.9]} 17... Na6 {[%clk 0:02:25.3]} 18. Bc4 {[%clk 0:01:02.8]}
18... Be6 {[%clk 0:01:51.5]} 19. Bxa6 {[%clk 0:00:53]} 19... Rxa6 {[%clk
0:01:38.2]} 20. Rxd6 {[%clk 0:00:53.2]} 20... Qxd6 {[%clk 0:01:33.6]} 21. e5
{[%clk 0:00:53.7]} 21... Qe7 {[%clk 0:01:33.4]} 22. exf6 {[%clk 0:00:54.2]}
22... Qxf6 {[%clk 0:01:34.3]} 23. Bd4 {[%clk 0:00:45.7]} 23... Qd8 {[%clk
0:01:27.4]} 24. Rd1 {[%clk 0:00:41.7]} 24... Qc8 {[%clk 0:01:22.2]} 25. Ne4
{[%clk 0:00:38.2]} 25... Bf5 {[%clk 0:01:20.4]} 26. Nfd2 {[%clk 0:00:29.3]}
26... Ra8 {[%clk 0:00:55.1]} 27. f3 {[%clk 0:00:26.4]} 27... Qc7 {[%clk
0:00:52]} 28. Qc3 {[%clk 0:00:26.5]} 28... f6 {[%clk 0:00:48.1]} 29. Nc5 {[%clk
0:00:20.6]} 29... Rad8 {[%clk 0:00:45.7]} 30. Nde4 {[%clk 0:00:19.1]} 30... b6
{[%clk 0:00:44.6]} 31. Nb3 {[%clk 0:00:16.3]} 31... c5 {[%clk 0:00:44.8]} 32.
Rc1 {[%clk 0:00:05.8]} 32... Bxe4 {[%clk 0:00:40.5]} 33. fxe4 {[%clk 0:00:06.2]}
33... Rxe4 {[%clk 0:00:41.4]} 34. Bf2 {[%clk 0:00:06.6]} 34... Qd7 {[%clk
0:00:39.1]} 35. Qf3 {[%clk 0:00:06.7]} 35... Rxa4 {[%clk 0:00:37.8]} 36. Re1
{[%clk 0:00:04.6]} 36... h6 {[%clk 0:00:34]} 37. Nc1 {[%clk 0:00:04.7]} 37...
Qd5 {[%clk 0:00:29.2]} 38. Qxd5+ {[%clk 0:00:03.9]} 38... Rxd5 {[%clk
0:00:29.2]} 39. Ne2 {[%clk 0:00:04.8]} 39... Re4 {[%clk 0:00:28.8]} 40. Nc3
{[%clk 0:00:04.2]} 40... Rxe1+ {[%clk 0:00:26.6]} 41. Bxe1 {[%clk 0:00:05.1]}
41... Rd3 {[%clk 0:00:25.7]} 42. Kf2 {[%clk 0:00:05.3]} 42... Kf7 {[%clk
0:00:25.5]} 43. Ke2 {[%clk 0:00:05.9]} 43... Rd8 {[%clk 0:00:25]} 44. Na4 {[%clk
0:00:05.6]} 44... Rd6 {[%clk 0:00:22.8]} 45. Bg3 {[%clk 0:00:05.7]} 45... Rc6
{[%clk 0:00:21.5]} 46. Kd2 {[%clk 0:00:05.3]} 46... b5 {[%clk 0:00:21.3]} 47.
Nc3 {[%clk 0:00:06]} 47... b4 {[%clk 0:00:21.2]} 48. Ne4 {[%clk 0:00:06.5]}
48... c4 {[%clk 0:00:20.3]} 49. Nd6+ {[%clk 0:00:06]} 49... Ke6 {[%clk
0:00:20.1]} 50. Ne4 {[%clk 0:00:05.4]} 50... Kd5 {[%clk 0:00:16.9]} 51. Ke3
{[%clk 0:00:04.4]} 51... a4 {[%clk 0:00:16.4]} 52. Nd2 {[%clk 0:00:04]} 52... c3
{[%clk 0:00:16]} 53. bxc3 {[%clk 0:00:04.2]} 53... bxc3 {[%clk 0:00:16.9]} 0-1

[Event "Late-Titled-Tuesday-Blitz-March-05-2024"]
[Site "Chess.com"]
[Date "2024.03.05"]
[Round "4"]
[White "laziestwin"]
[Black "FMJoseHerrera"]
[Result "1-0"]
[WhiteElo "2581"]
[BlackElo "2760"]
[TimeControl "180+1"]
[EndTime "14:40:06 PST"]
[Termination "laziestwin won on time"]

1. d4 {[%clk 0:03:00.9]} 1... Nf6 {[%clk 0:02:59]} 2. c4 {[%clk 0:03:00.9]} 2...
c5 {[%clk 0:02:59.5]} 3. d5 {[%clk 0:03:00.8]} 3... b5 {[%clk 0:03:00.2]} 4.
cxb5 {[%clk 0:03:00.6]} 4... a6 {[%clk 0:03:00.9]} 5. bxa6 {[%clk 0:03:01]} 5...
e6 {[%clk 0:03:01.5]} 6. Nc3 {[%clk 0:03:00.2]} 6... exd5 {[%clk 0:03:01.4]} 7.
Nxd5 {[%clk 0:02:59.7]} 7... Be7 {[%clk 0:03:02.3]} 8. Nxe7 {[%clk 0:02:54.4]}
8... Qxe7 {[%clk 0:03:03.2]} 9. e3 {[%clk 0:02:53.2]} 9... O-O {[%clk
0:03:02.7]} 10. Nf3 {[%clk 0:02:53]} 10... d5 {[%clk 0:03:02.6]} 11. Be2 {[%clk
0:02:48.2]} 11... Nxa6 {[%clk 0:03:02.5]} 12. O-O {[%clk 0:02:48.6]} 12... Bb7
{[%clk 0:03:03]} 13. b3 {[%clk 0:02:48.4]} 13... Ne4 {[%clk 0:03:01.9]} 14. Bb2
{[%clk 0:02:47.8]} 14... Rfd8 {[%clk 0:03:01.6]} 15. Bd3 {[%clk 0:02:43.8]}
15... Nb4 {[%clk 0:03:01.1]} 16. Bb1 {[%clk 0:02:41.2]} 16... Ba6 {[%clk
0:02:09.7]} 17. Re1 {[%clk 0:02:39.5]} 17... f6 {[%clk 0:02:06.7]} 18. a3 {[%clk
0:02:37.1]} 18... Nc6 {[%clk 0:02:06.8]} 19. Nd2 {[%clk 0:02:32]} 19... Nd6
{[%clk 0:01:53.4]} 20. Qc2 {[%clk 0:02:29.2]} 20... Nf7 {[%clk 0:01:19]} 21.
Qxh7+ {[%clk 0:02:18.8]} 21... Kf8 {[%clk 0:01:18.9]} 22. Nf3 {[%clk 0:02:12.8]}
22... Rab8 {[%clk 0:01:16.1]} 23. Bc2 {[%clk 0:02:12]} 23... Nce5 {[%clk
0:01:14.4]} 24. Nh4 {[%clk 0:02:00.2]} 24... Qa7 {[%clk 0:00:25.8]} 25. Ng6+
{[%clk 0:01:54.6]} 25... Nxg6 {[%clk 0:00:24.8]} 26. Bxg6 {[%clk 0:01:53.1]}
26... Rxb3 {[%clk 0:00:22.4]} 27. Rab1 {[%clk 0:01:39.3]} 27... Rdb8 {[%clk
0:00:21.7]} 28. Ba1 {[%clk 0:01:20.3]} 28... Rxb1 {[%clk 0:00:21.6]} 29. Rxb1
{[%clk 0:01:21.2]} 29... Rxb1+ {[%clk 0:00:21.8]} 30. Bxb1 {[%clk 0:01:22]}
30... Bc4 {[%clk 0:00:21.3]} 31. Bb2 {[%clk 0:01:03.4]} 31... Qb6 {[%clk
0:00:21.2]} 32. Qc2 {[%clk 0:00:59.3]} 32... Ne5 {[%clk 0:00:21]} 33. Qc3 {[%clk
0:00:53.2]} 33... Qb5 {[%clk 0:00:17.4]} 34. h3 {[%clk 0:00:49.4]} 34... Kf7
{[%clk 0:00:17.1]} 35. Bc2 {[%clk 0:00:46.5]} 35... Qa6 {[%clk 0:00:16.8]} 36.
a4 {[%clk 0:00:45.7]} 36... Nc6 {[%clk 0:00:17]} 37. Ba3 {[%clk 0:00:44.3]}
37... d4 {[%clk 0:00:16.7]} 38. exd4 {[%clk 0:00:43.8]} 38... Nxd4 {[%clk
0:00:17.6]} 39. Qe3 {[%clk 0:00:37.3]} 39... Nxc2 {[%clk 0:00:16.5]} 40. Qxc5
{[%clk 0:00:36.1]} 40... Nxa3 {[%clk 0:00:16.6]} 41. Qxa3 {[%clk 0:00:37]} 41...
Qe6 {[%clk 0:00:16.6]} 42. Qc3 {[%clk 0:00:35]} 42... Qe2 {[%clk 0:00:16.1]} 43.
Qd4 {[%clk 0:00:31.9]} 43... Qf1+ {[%clk 0:00:14.6]} 44. Kh2 {[%clk 0:00:31.9]}
44... Qd3 {[%clk 0:00:10.9]} 45. Qc5 {[%clk 0:00:22.2]} 45... Bd5 {[%clk
0:00:09.1]} 46. a5 {[%clk 0:00:20.5]} 46... Qe4 {[%clk 0:00:08.9]} 47. Qc7+
{[%clk 0:00:19.1]} 47... Ke6 {[%clk 0:00:06.4]} 48. Qc8+ {[%clk 0:00:16.2]}
48... Kf7 {[%clk 0:00:05.2]} 49. Qc7+ {[%clk 0:00:16.3]} 49... Kf8 {[%clk
0:00:04.7]} 50. Qg3 {[%clk 0:00:15.3]} 50... g5 {[%clk 0:00:04]} 51. a6 {[%clk
0:00:14.7]} 51... Kf7 {[%clk 0:00:04.3]} 52. Qc7+ {[%clk 0:00:09.5]} 52... Kg6
{[%clk 0:00:04.6]} 53. f3 {[%clk 0:00:03.6]} 53... Qe2 {[%clk 0:00:03.1]} 54. a7
{[%clk 0:00:02.7]} 54... Bxf3 {[%clk 0:00:01.6]} 55. Qg3 {[%clk 0:00:02.6]} 1-0

[Event "Late-Titled-Tuesday-Blitz-March-05-2024"]
[Site "Chess.com"]
[Date "2024.03.05"]
[Round "4"]
[White "Blitzstream"]
[Black "Squirlolz"]
[Result "0-1"]
[WhiteElo "2780"]
[BlackElo "2584"]
[TimeControl "180+1"]
[EndTime "14:40:09 PST"]
[Termination "Squirlolz won by resignation"]

1. e4 {[%clk 0:03:00.9]} 1... c5 {[%clk 0:02:55.2]} 2. Nf3 {[%clk 0:03:01.4]}
2... d6 {[%clk 0:02:55.2]} 3. d4 {[%clk 0:03:01.2]} 3... cxd4 {[%clk 0:02:56.1]}
4. Nxd4 {[%clk 0:03:02]} 4... Nf6 {[%clk 0:02:56.7]} 5. Nc3 {[%clk 0:03:02.7]}
5... Nc6 {[%clk 0:02:57.3]} 6. Bc4 {[%clk 0:03:01.8]} 6... e6 {[%clk 0:02:55.8]}
7. Bb3 {[%clk 0:03:01.3]} 7... Be7 {[%clk 0:02:53.4]} 8. g4 {[%clk 0:03:01.5]}
8... Nxd4 {[%clk 0:02:48.7]} 9. Qxd4 {[%clk 0:03:02.4]} 9... e5 {[%clk
0:02:47.7]} 10. Qd3 {[%clk 0:03:00.4]} 10... Bxg4 {[%clk 0:02:47.1]} 11. f3
{[%clk 0:02:58.7]} 11... Be6 {[%clk 0:02:47]} 12. Be3 {[%clk 0:02:57.4]} 12...
O-O {[%clk 0:02:27.6]} 13. Rg1 {[%clk 0:02:55.8]} 13... Bxb3 {[%clk 0:02:11.5]}
14. axb3 {[%clk 0:02:54.3]} 14... a6 {[%clk 0:02:08]} 15. O-O-O {[%clk
0:02:53.4]} 15... Rc8 {[%clk 0:02:01.9]} 16. Bh6 {[%clk 0:02:46.6]} 16... Ne8
{[%clk 0:01:54.7]} 17. Nd5 {[%clk 0:02:42.6]} 17... Kh8 {[%clk 0:01:52.6]} 18.
Be3 {[%clk 0:02:42.5]} 18... Nf6 {[%clk 0:01:47.4]} 19. Nxe7 {[%clk 0:01:40.4]}
19... Qxe7 {[%clk 0:01:47.3]} 20. Qxd6 {[%clk 0:01:41.1]} 20... Qxd6 {[%clk
0:01:39.8]} 21. Rxd6 {[%clk 0:01:42]} 21... Rfd8 {[%clk 0:01:40]} 22. Rgd1
{[%clk 0:01:42.6]} 22... Rxd6 {[%clk 0:01:40.4]} 23. Rxd6 {[%clk 0:01:43.5]}
23... Kg8 {[%clk 0:01:40.7]} 24. Bg5 {[%clk 0:01:43.1]} 24... Ne8 {[%clk
0:01:34.6]} 25. Rd7 {[%clk 0:01:43]} 25... Rc7 {[%clk 0:01:35.1]} 26. Rd8 {[%clk
0:01:34.3]} 26... Kf8 {[%clk 0:01:35.3]} 27. Kd2 {[%clk 0:01:31.7]} 27... f6
{[%clk 0:01:34.1]} 28. Be3 {[%clk 0:01:29.4]} 28... Ke7 {[%clk 0:01:34.7]} 29.
Rb8 {[%clk 0:01:28.5]} 29... Nd6 {[%clk 0:01:17.9]} 30. c4 {[%clk 0:01:28]}
30... Rc8 {[%clk 0:01:13.9]} 31. Rxc8 {[%clk 0:01:28.1]} 31... Nxc8 {[%clk
0:01:14.8]} 32. b4 {[%clk 0:01:28.1]} 32... Kd7 {[%clk 0:01:09.6]} 33. Bc5
{[%clk 0:01:19.8]} 33... g6 {[%clk 0:01:04.8]} 34. Kc3 {[%clk 0:01:19.1]} 34...
Kc6 {[%clk 0:00:58]} 35. Bf8 {[%clk 0:01:17.7]} 35... f5 {[%clk 0:00:53.5]} 36.
Bg7 {[%clk 0:01:13.8]} 36... Kd6 {[%clk 0:00:53.7]} 37. c5+ {[%clk 0:01:09.2]}
37... Ke6 {[%clk 0:00:53.4]} 38. Kc4 {[%clk 0:01:08.8]} 38... Na7 {[%clk
0:00:53.6]} 39. Bh6 {[%clk 0:01:03.7]} 39... Nb5 {[%clk 0:00:50.9]} 40. Be3
{[%clk 0:01:03]} 40... f4 {[%clk 0:00:45.9]} 41. Bf2 {[%clk 0:01:02.1]} 41... g5
{[%clk 0:00:46.2]} 42. h3 {[%clk 0:01:02.2]} 42... h5 {[%clk 0:00:46.3]} 43. Bg1
{[%clk 0:01:02]} 43... Nc7 {[%clk 0:00:39.2]} 44. Bf2 {[%clk 0:01:00.2]} 44...
Kd7 {[%clk 0:00:37.6]} 45. Be1 {[%clk 0:00:59.1]} 45... Nb5 {[%clk 0:00:34.1]}
46. Bf2 {[%clk 0:00:52.4]} 46... Kc6 {[%clk 0:00:34]} 47. Bg1 {[%clk 0:00:49.8]}
47... Nc7 {[%clk 0:00:30.7]} 48. Bf2 {[%clk 0:00:50.2]} 48... Ne6 {[%clk
0:00:30.3]} 49. Bg1 {[%clk 0:00:49.9]} 49... g4 {[%clk 0:00:29]} 50. hxg4 {[%clk
0:00:49.7]} 50... hxg4 {[%clk 0:00:29.9]} 51. fxg4 {[%clk 0:00:50]} 51... Ng5
{[%clk 0:00:30.6]} 52. Kd3 {[%clk 0:00:46]} 52... Nh3 {[%clk 0:00:30.7]} 53. Bh2
{[%clk 0:00:45.3]} 53... Nf2+ {[%clk 0:00:31.3]} 54. Ke2 {[%clk 0:00:42.3]}
54... Nxg4 {[%clk 0:00:31.4]} 55. Bg1 {[%clk 0:00:42.8]} 55... Kb5 {[%clk
0:00:21.6]} 56. Kf3 {[%clk 0:00:42.9]} 56... Nf6 {[%clk 0:00:21.5]} 57. Bf2
{[%clk 0:00:43.4]} 57... Kxb4 {[%clk 0:00:21.2]} 58. Bh4 {[%clk 0:00:44.3]}
58... Nd7 {[%clk 0:00:21.2]} 59. Be7 {[%clk 0:00:44.1]} 59... Kc4 {[%clk
0:00:19.1]} 60. Bd6 {[%clk 0:00:42.4]} 60... Kd4 {[%clk 0:00:19.4]} 61. b4
{[%clk 0:00:41.7]} 61... Kc4 {[%clk 0:00:18.3]} 62. Kg4 {[%clk 0:00:42.1]} 62...
Kd4 {[%clk 0:00:14.2]} 63. Kf3 {[%clk 0:00:42.5]} 63... Kd3 {[%clk 0:00:12]} 64.
Be7 {[%clk 0:00:40.5]} 64... Nb8 {[%clk 0:00:05.6]} 65. Bd6 {[%clk 0:00:40.7]}
65... Nc6 {[%clk 0:00:06]} 66. Bc7 {[%clk 0:00:40.6]} 66... Kd4 {[%clk
0:00:05.9]} 67. Bb6 {[%clk 0:00:39.8]} 67... Kc4 {[%clk 0:00:05.2]} 68. Bc7
{[%clk 0:00:39.9]} 68... Kd3 {[%clk 0:00:05.4]} 69. Bd6 {[%clk 0:00:39.2]} 69...
Kd4 {[%clk 0:00:04.4]} 70. Bc7 {[%clk 0:00:36.1]} 70... Nxb4 {[%clk 0:00:04.8]}
71. Bb6 {[%clk 0:00:36.6]} 71... Nc6 {[%clk 0:00:05.3]} 72. Bc7 {[%clk 0:00:36]}
72... a5 {[%clk 0:00:05.7]} 73. Bb6 {[%clk 0:00:36]} 73... a4 {[%clk 0:00:06.6]}
74. Ba5 {[%clk 0:00:36.4]} 74... Nxa5 {[%clk 0:00:06.6]} 0-1

[Event "Late-Titled-Tuesday-Blitz-March-05-2024"]
[Site "Chess.com"]
[Date "2024.03.05"]
[Round "4"]
[White "yuriydovzik"]
[Black "Englishman_18"]
[Result "0-1"]
[WhiteElo "2070"]
[BlackElo "2294"]
[TimeControl "180+1"]
[EndTime "14:40:10 PST"]
[Termination "Englishman_18 won on time"]

1. b3 {[%clk 0:02:57.7]} 1... d5 {[%clk 0:02:56.1]} 2. Bb2 {[%clk 0:02:57]} 2...
Nf6 {[%clk 0:02:55.9]} 3. g3 {[%clk 0:02:56.1]} 3... g6 {[%clk 0:02:56]} 4. Bg2
{[%clk 0:02:56]} 4... Bg7 {[%clk 0:02:56.5]} 5. Nf3 {[%clk 0:02:53.9]} 5... O-O
{[%clk 0:02:55.4]} 6. O-O {[%clk 0:02:53.5]} 6... c5 {[%clk 0:02:54.8]} 7. e3
{[%clk 0:02:50.3]} 7... Nc6 {[%clk 0:02:54.9]} 8. d4 {[%clk 0:02:45.9]} 8... b6
{[%clk 0:02:52.1]} 9. Ne5 {[%clk 0:02:40.2]} 9... Qc7 {[%clk 0:02:46.1]} 10. f4
{[%clk 0:02:33.7]} 10... e6 {[%clk 0:02:43.6]} 11. Nd2 {[%clk 0:02:30.9]} 11...
Ne7 {[%clk 0:02:42.8]} 12. c3 {[%clk 0:02:16.8]} 12... Nf5 {[%clk 0:02:42]} 13.
Re1 {[%clk 0:02:10.8]} 13... Nd6 {[%clk 0:02:41.2]} 14. Rc1 {[%clk 0:02:06.5]}
14... Bb7 {[%clk 0:02:31.5]} 15. c4 {[%clk 0:01:59.8]} 15... Rfd8 {[%clk
0:02:20.8]} 16. cxd5 {[%clk 0:01:59]} 16... exd5 {[%clk 0:02:20.5]} 17. dxc5
{[%clk 0:01:45.3]} 17... bxc5 {[%clk 0:02:19.3]} 18. Bd4 {[%clk 0:01:32.6]}
18... Nfe4 {[%clk 0:01:26.9]} 19. Nxe4 {[%clk 0:01:30]} 19... Nxe4 {[%clk
0:01:26]} 20. Bxe4 {[%clk 0:01:24.4]} 20... dxe4 {[%clk 0:01:25.2]} 21. Rxc5
{[%clk 0:01:23.4]} 21... Qxc5 {[%clk 0:01:24.5]} 22. Bxc5 {[%clk 0:01:21.5]}
22... Rxd1 {[%clk 0:01:23.4]} 23. Rxd1 {[%clk 0:01:21.5]} 23... Bxe5 {[%clk
0:01:16.1]} 24. fxe5 {[%clk 0:01:20.4]} 24... Rc8 {[%clk 0:01:16.5]} 25. Be7
{[%clk 0:01:12.7]} 25... a5 {[%clk 0:00:49.4]} 26. Bf6 {[%clk 0:01:11.5]} 26...
Ba6 {[%clk 0:00:46.1]} 27. Rd5 {[%clk 0:01:01.4]} 27... a4 {[%clk 0:00:42.8]}
28. bxa4 {[%clk 0:00:52.8]} 28... Bc4 {[%clk 0:00:41.2]} 29. Rd4 {[%clk
0:00:49.5]} 29... Bxa2 {[%clk 0:00:36.3]} 30. Rxe4 {[%clk 0:00:42.3]} 30... Rc1+
{[%clk 0:00:35.8]} 31. Kf2 {[%clk 0:00:40.4]} 31... Rc2+ {[%clk 0:00:35.4]} 32.
Ke1 {[%clk 0:00:39.5]} 32... h6 {[%clk 0:00:19.4]} 33. Rb4 {[%clk 0:00:34.1]}
33... Rc8 {[%clk 0:00:19.1]} 34. h4 {[%clk 0:00:30.5]} 34... Kh7 {[%clk
0:00:17.4]} 35. a5 {[%clk 0:00:28.4]} 35... Bd5 {[%clk 0:00:16.4]} 36. e4 {[%clk
0:00:23.6]} 36... Be6 {[%clk 0:00:15.3]} 37. a6 {[%clk 0:00:21.9]} 37... Ra8
{[%clk 0:00:15]} 38. Ra4 {[%clk 0:00:19.3]} 38... Ra7 {[%clk 0:00:12.9]} 39. Ra5
{[%clk 0:00:15.8]} 39... Bc8 {[%clk 0:00:12.6]} 40. Bd8 {[%clk 0:00:13.6]} 40...
Rxa6 {[%clk 0:00:11]} 41. Rc5 {[%clk 0:00:10.5]} 41... Ra1+ {[%clk 0:00:10.9]}
42. Kd2 {[%clk 0:00:09.6]} 42... Be6 {[%clk 0:00:11.3]} 43. Bf6 {[%clk
0:00:08.4]} 43... g5 {[%clk 0:00:10.9]} 44. h5 {[%clk 0:00:07.6]} 44... Ra2+
{[%clk 0:00:08.9]} 45. Ke3 {[%clk 0:00:06.8]} 45... Ra3+ {[%clk 0:00:08.5]} 46.
Kf2 {[%clk 0:00:06.9]} 46... Ra2+ {[%clk 0:00:08.8]} 47. Ke1 {[%clk 0:00:06.3]}
47... Ra1+ {[%clk 0:00:09.2]} 48. Kd2 {[%clk 0:00:05]} 48... Ra2+ {[%clk
0:00:09.7]} 49. Kc3 {[%clk 0:00:04.7]} 49... Ra1 {[%clk 0:00:08.2]} 50. Rb5
{[%clk 0:00:04.1]} 50... Ra8 {[%clk 0:00:06.7]} 51. Rb7 {[%clk 0:00:02.5]} 51...
Kg8 {[%clk 0:00:05.3]} 52. Kd4 {[%clk 0:00:02.5]} 52... Bg4 {[%clk 0:00:05.3]}
0-1

[Event "Late-Titled-Tuesday-Blitz-March-05-2024"]
[Site "Chess.com"]
[Date "2024.03.05"]
[Round "4"]
[White "FabianoCaruana"]
[Black "Miguelito"]
[Result "1-0"]
[WhiteElo "3055"]
[BlackElo "2798"]
[TimeControl "180+1"]
[EndTime "14:40:14 PST"]
[Termination "FabianoCaruana won by resignation"]

1. c4 {[%clk 0:03:00.9]} 1... c6 {[%clk 0:02:53]} 2. Nf3 {[%clk 0:02:57.9]} 2...
d5 {[%clk 0:02:51.5]} 3. e3 {[%clk 0:02:58.3]} 3... Nf6 {[%clk 0:02:51.4]} 4.
Nc3 {[%clk 0:02:58.5]} 4... a6 {[%clk 0:02:49.3]} 5. b3 {[%clk 0:02:57.8]} 5...
Bf5 {[%clk 0:02:45.6]} 6. Bb2 {[%clk 0:02:57]} 6... e6 {[%clk 0:02:45.4]} 7. Be2
{[%clk 0:02:54.2]} 7... Nbd7 {[%clk 0:02:44.9]} 8. Nh4 {[%clk 0:02:53.1]} 8...
Bg6 {[%clk 0:02:42.4]} 9. O-O {[%clk 0:02:51.9]} 9... Bd6 {[%clk 0:02:42]} 10.
g3 {[%clk 0:02:51.1]} 10... Qe7 {[%clk 0:02:41.4]} 11. d3 {[%clk 0:02:47]} 11...
Ba3 {[%clk 0:02:33.6]} 12. Bxa3 {[%clk 0:02:34.3]} 12... Qxa3 {[%clk 0:02:34.5]}
13. Qd2 {[%clk 0:02:20.7]} 13... O-O {[%clk 0:02:29.9]} 14. Nxg6 {[%clk
0:02:20.2]} 14... hxg6 {[%clk 0:02:29.7]} 15. d4 {[%clk 0:02:17.9]} 15... a5
{[%clk 0:02:25.7]} 16. Rab1 {[%clk 0:02:15.3]} 16... Qe7 {[%clk 0:02:18.5]} 17.
Bf3 {[%clk 0:02:10.8]} 17... Rfd8 {[%clk 0:02:08.9]} 18. Rfc1 {[%clk 0:02:00.8]}
18... Qb4 {[%clk 0:01:52.9]} 19. Qe2 {[%clk 0:01:57.4]} 19... Qe7 {[%clk
0:01:48.3]} 20. h4 {[%clk 0:01:55.3]} 20... Nb6 {[%clk 0:01:41.4]} 21. Na4
{[%clk 0:01:42.5]} 21... Nbd7 {[%clk 0:01:24.3]} 22. Bg2 {[%clk 0:01:39.5]}
22... e5 {[%clk 0:01:16.7]} 23. cxd5 {[%clk 0:01:37.1]} 23... Nxd5 {[%clk
0:01:13.5]} 24. Bxd5 {[%clk 0:01:12.9]} 24... cxd5 {[%clk 0:01:14.4]} 25. Qb5
{[%clk 0:01:07.1]} 25... exd4 {[%clk 0:00:55.3]} 26. exd4 {[%clk 0:01:08]} 26...
Nf6 {[%clk 0:00:54.8]} 27. Re1 {[%clk 0:00:56.7]} 27... Ne4 {[%clk 0:00:44.5]}
28. Nc5 {[%clk 0:00:56.3]} 28... Qf6 {[%clk 0:00:44]} 29. Nxe4 {[%clk
0:00:55.7]} 29... dxe4 {[%clk 0:00:44]} 30. Rxe4 {[%clk 0:00:54.1]} 30... Rxd4
{[%clk 0:00:44.1]} 31. Rxd4 {[%clk 0:00:48.6]} 31... Qxd4 {[%clk 0:00:45]} 32.
Qxb7 {[%clk 0:00:46.6]} 32... Re8 {[%clk 0:00:43.6]} 33. Qf3 {[%clk 0:00:44.6]}
33... Qd2 {[%clk 0:00:35]} 34. a4 {[%clk 0:00:44.5]} 34... Re2 {[%clk
0:00:29.2]} 35. Kg2 {[%clk 0:00:40.3]} 35... Qc2 {[%clk 0:00:26.5]} 36. Rh1
{[%clk 0:00:35.3]} 36... Rd2 {[%clk 0:00:20.4]} 37. Re1 {[%clk 0:00:29.2]} 37...
Qd3 {[%clk 0:00:14.8]} 38. Re8+ {[%clk 0:00:25.3]} 38... Kh7 {[%clk 0:00:14.7]}
39. Qxf7 {[%clk 0:00:23.3]} 39... Qd5+ {[%clk 0:00:09.9]} 40. Qxd5 {[%clk
0:00:23.1]} 40... Rxd5 {[%clk 0:00:10.8]} 41. Rb8 {[%clk 0:00:23.1]} 41... Rd3
{[%clk 0:00:10]} 42. Rb5 {[%clk 0:00:23.2]} 42... Kh6 {[%clk 0:00:07.9]} 43. f4
{[%clk 0:00:20.7]} 43... Rc3 {[%clk 0:00:07.8]} 44. Kh3 {[%clk 0:00:21.1]} 44...
Rd3 {[%clk 0:00:07.8]} 45. Kg4 {[%clk 0:00:21.6]} 45... Rc3 {[%clk 0:00:08.4]}
46. Rxa5 {[%clk 0:00:11.9]} 46... Rxb3 {[%clk 0:00:08.7]} 47. Ra8 {[%clk
0:00:10.5]} 47... Kh7 {[%clk 0:00:09.2]} 48. a5 {[%clk 0:00:10.6]} 48... Rc3
{[%clk 0:00:09.5]} 49. a6 {[%clk 0:00:10.9]} 49... Ra3 {[%clk 0:00:09.9]} 50. a7
{[%clk 0:00:07.1]} 50... Ra5 {[%clk 0:00:08.9]} 51. Kf3 {[%clk 0:00:06.7]} 51...
Ra3+ {[%clk 0:00:09.2]} 52. Ke4 {[%clk 0:00:07.1]} 52... Ra1 {[%clk 0:00:09.7]}
53. g4 {[%clk 0:00:05.5]} 53... Re1+ {[%clk 0:00:09]} 54. Kd3 {[%clk 0:00:05.2]}
54... Rd1+ {[%clk 0:00:09.1]} 55. Ke2 {[%clk 0:00:05.7]} 55... Ra1 {[%clk
0:00:10]} 56. h5 {[%clk 0:00:06.2]} 56... gxh5 {[%clk 0:00:09.2]} 57. gxh5
{[%clk 0:00:07.1]} 57... Ra2+ {[%clk 0:00:09.3]} 58. Kd3 {[%clk 0:00:07]} 58...
Ra3+ {[%clk 0:00:09.7]} 59. Kc2 {[%clk 0:00:07.5]} 59... Ra6 {[%clk 0:00:09]}
60. f5 {[%clk 0:00:07.3]} 60... Ra5 {[%clk 0:00:08]} 61. h6 {[%clk 0:00:07.6]}
61... Ra6 {[%clk 0:00:04.9]} 62. hxg7 {[%clk 0:00:06.9]} 62... Kxg7 {[%clk
0:00:05.6]} 63. f6+ {[%clk 0:00:07.1]} 63... Kf7 {[%clk 0:00:05.8]} 64. Rh8
{[%clk 0:00:07.1]} 1-0